[Event "Bangabandhu Premier Div League 2022"]
[Site "Dhaka"]
[Date "2022.12.03"]
[Round "4.2"]
[White "Masum, Hossain"]
[Black "Narayanan.S.L"]
[Result "0-1"]
[ECO "A06"]
[WhiteElo "2103"]
[BlackElo "2673"]
[Annotator "TA"]
[PlyCount "88"]
[EventDate "2022.12.01"]
[EventCountry "BAN"]
[SourceTitle "playchess.com"]
[Source "ChessBase"]
[SourceQuality "1"]
[TimeControl "40/5400+30:1800+30"]

{[%evp 9,88,24,28,0,0,0,0,0,1,0,0,-1,25,-21,-19,-31,-14,-20,-13,-11,-16,-56,-54,-45,-56,-45,-20,-36,-20,-39,-31,-62,-54,-62,-64,-101,-95,-91,-68,-111,-104,-151,-143,-234,-252,-225,-185,-177,-192,-182,-179,-163,-189,-237,-193,-192,-199,-355,-347,-514,-500,-764,-720,-741,-690,-674,-728,-703,-717,-715,-716,-705,-626,-706,-686,-688,-675,-781,-783,-706,-695]} 1. Nf3 {[%emt 0:02:08]} c5 {[%emt 0:00:15]} 2. b3 {[%emt 0:00:03]} d5 {[%emt 0:00:06]} 3. Bb2 {[%emt 0:00:04]} Nf6 {[%emt 0:00:06]} 4. e3 {[%emt 0:00:05]} g6 {[%emt 0:00:04]} 5. c4 {[%emt 0:00:06]} dxc4 {[%emt 0:00:08]} 6. bxc4 {[%emt 0:00:01] A06: Réti Opening: 1 Nf3 d5.} Bg7 {[%emt 0:00:08]} 7. Be2 {[%emt 0:00:42]} O-O {[%emt 0:00:06]} 8. O-O {[%emt 1:31:21] The position is equal.} b6 {[%emt 1:33:37]} 9. d3 {[%emt 0:00:00]} Bb7 {[%emt 0:00:00]} 10. Nbd2 {[%emt 0:00:00]} Nc6 {[%emt 0:00:00]} 11. a3 {[%emt 0:00:00]} (11. Ne5 $142) 11... Qc7 {[%emt 0:00:00]} 12. Qc2 {[%emt 0:00:00] [#]} Rad8 $146 {[%emt 0:00:00]} ({Predecessor:} 12... Rfe8 13. Rfe1 e5 14. e4 Nd4 15. Nxd4 exd4 16. Nf1 Rad8 17. Rad1 Bc6 18. Nd2 Qd7 {0-1 (39) Goessnitzer,N (2090)-Hashemi,A Germany 1998}) 13. Rfd1 {[%emt 0:02:30]} Ne8 {[%emt 0:00:00]} 14. Bxg7 {[%emt 0:00:00]} Nxg7 {[%emt 0:03:00][%cal Be8g7,Bg7h5,Bh5f6][%mdl 32]} 15. Nf1 {[%emt 0:00:00]} e5 {[%emt 0:00:30]} 16. N3d2 {[%emt 0:00:00]} f5 {[%emt 0:00:00]} 17. Bf3 {[%emt 0:02:00]} Kh8 {[%emt 0:00:00]} 18. Bd5 {[%emt 0:00:00]} Nh5 {[%emt 0:00:00]} 19. Qc3 {[%emt 0:00:00]} Nf6 {[%emt 0:02:00]} 20. Bf3 {[%emt 0:01:30]} Kg7 {[%emt 0:00:30]} 21. Rac1 {[%emt 0:00:00]} Qe7 {[%emt 0:00:00]} 22. Ng3 {[%emt 0:00:00] White is on the road to losing.} h5 {[%emt 0:00:00][%cal Bh7h5,Bh5h4][%mdl 32]} 23. h3 {[%emt 0:01:30]} h4 {[%emt 0:00:00]} 24. Ne2 {[%emt 0:00:30] [#]} g5 $1 {[%emt 0:02:00]} 25. Bxc6 {[%emt 0:00:00]} (25. Qc2 $142) 25... Bxc6 $17 {[%emt 0:00:00]} 26. Nf3 {[%emt 0:01:00]} (26. Re1 $17) 26... Bxf3 $19 {[%emt 0:00:00]} 27. gxf3 {[%emt 0:00:00]} Qb7 {[%emt 0:01:30]} 28. e4 {[%emt 0:00:00]} Qe7 {[%emt 0:00:00]} 29. Kh2 {[%emt 0:00:00]} Nh5 {[%emt 0:00:00]} 30. Rg1 {[%emt 0:00:00]} Kh6 {[%emt 0:00:00]} 31. Rg2 {[%emt 0:00:00]} (31. a4 {was worth a try.}) 31... Rd6 {[%emt 0:00:00]} 32. Rcg1 {[%emt 0:00:00] Threatens to win with Rxg5.} Rg6 {[%emt 0:00:00]} 33. Qd2 $2 {[%emt 0:00:00] [#]} (33. a4) 33... fxe4 $1 {[%emt 0:03:00]} 34. Rg4 {[%emt 0:02:44]} (34. fxe4 $142 Rf3 35. Rg4 Rxf2+ 36. R1g2 Rxg2+ 37. Rxg2) 34... Rxf3 {[%emt 0:00:00] Black is clearly winning.} 35. Rxh4 {[%emt 0:00:01]} (35. dxe4 $142 Rxf2+ 36. R1g2 Rxg2+ 37. Rxg2) 35... e3 {[%emt 0:00:00]} (35... Rxf2+ 36. Rg2 Rxg2+ 37. Kxg2 $19) ({Not} 35... exd3 36. Ng3 Qf7 37. Rxh5+ (37. Nxh5 {leads to mate.} Rxf2+) 37... Kg7 38. Kg2 $16 (38. Rxg5 $2 Rxf2+ 39. Rg2 Rxd2 $19) (38. Ne4 Qf4+ 39. Qxf4 Rxf4 $18)) 36. Rxh5+ {[%emt 0:00:27]} Kxh5 {[%emt 0:00:00]} 37. fxe3 {[%emt 0:00:06]} g4 {[%emt 0:00:00] aiming for ...Qh4.} 38. Ng3+ {[%emt 0:00:51]} Kh6 {[%emt 0:00:00] ...Qh4 is the strong threat.} 39. e4+ {[%emt 0:00:30]} Kh7 {[%emt 0:00:00] ( -> ...Qh4)} 40. Nf5 {[%emt 0:00:29] Against Qh4} Rxh3+ {[%emt 0:00:00]} 41. Kg2 {[%emt 0:30:04]} Qg5 {[%emt 0:00:00]} 42. Qxg5 {[%emt 0:01:46]} Rxg5 {[%emt 0:00:00]} 43. Ng3 {[%emt 0:00:01]} Rg7 {[%emt 0:00:00]} 44. Kf2 {[%emt 0:00:00]} Rd7 {[%emt 0:00:00] Weighted Error Value: White=0.43/Black=0.05 (flawless)} 0-1

[Event "Bangabandhu Premier Div League 2022"]
[Site "Dhaka"]
[Date "2022.12.03"]
[Round "4.3"]
[White "Idani, Pouya"]
[Black "Aaryan Varshney"]
[Result "*"]
[ECO "B12"]
[WhiteElo "2631"]
[BlackElo "2312"]
[Annotator "TA"]
[PlyCount "41"]
[EventDate "2022.12.01"]
[EventCountry "BAN"]
[SourceTitle "playchess.com"]
[Source "ChessBase"]
[SourceQuality "1"]
[TimeControl "40/5400+30:1800+30"]

{[%evp 9,41,7,7,10,15,16,16,14,12,4,5,0,0,0,0,-8,0,-14,10,0,42,25,15,19,18,27,22,16,26,22,40,36,58,40]} 1. e4 {[%emt 0:02:02]} c6 {[%emt 0:00:04]} 2. d4 {[%emt 0:00:08]} d5 {[%emt 0:00:04]} 3. e5 {[%emt 0:00:17]} Bf5 {[%emt 0:00:10]} 4. h4 {[%emt 0:00:04]} h5 {[%emt 0:00:04]} 5. Bd3 {[%emt 0:00:03]} Bxd3 {[%emt 0:00:11]} 6. Qxd3 {[%emt 1:30:56][%cal Oe5e6] B12: Caro-Kann: Advance Variation.} Qa5+ {[%emt 0:01:32]} 7. Nd2 {[%emt 1:31:22][%cal Oe5e6] Threatens to win with e6!} e6 {[%emt 0:00:11]} 8. Ngf3 {[%emt 0:00:03] The position is equal.} Ne7 {[%emt 0:21:04]} 9. O-O {[%emt 0:00:00][%cal Ob2b4]} Nf5 {[%emt 0:02:42]} 10. Nb3 {[%emt 0:00:00]} Qa6 {[%emt 0:01:33]} 11. Qd1 {[%emt 0:00:00]} Nd7 {[%emt 1:08:25]} 12. a4 {[%emt 0:00:30] [#]} Rc8 $146 {[%emt 0:00:30]} ({Predecessor:} 12... g6 13. Bg5 Bg7 14. a5 O-O 15. Re1 Rac8 16. g3 c5 17. c3 Rfe8 18. Qe2 Qxe2 19. Rxe2 cxd4 20. Nbxd4 Nxd4 21. cxd4 {1-0 (25) Swiercz,D (2665)-Eljanov,P (2681) Chess.com INT 2022}) 13. Bg5 {[%emt 0:00:00]} c5 {[%emt 0:00:00]} 14. c3 {[%emt 0:00:00]} c4 {[%emt 0:01:00]} 15. Nbd2 {[%emt 0:00:30]} f6 {[%emt 0:00:30]} 16. Bf4 {[%emt 0:00:00]} Be7 {[%emt 0:01:00]} 17. g3 {[%emt 0:01:00]} Nf8 {[%emt 0:00:00]} 18. Re1 {[%emt 0:00:00]} Ng6 {[%emt 0:00:30]} 19. Be3 $1 {[%emt 0:01:00]} fxe5 {[%emt 0:01:00]} 20. dxe5 {[%emt 0:00:00]} Nxe3 {[%emt 0:00:30]} 21. Rxe3 {[%emt 0:02:00] Weighted Error Value: White=0.04 (flawless) /Black=0.08 (flawless)} *

[Event "Bangabandhu Premier Div League 2022"]
[Site "Dhaka"]
[Date "2022.12.03"]
[Round "4.3"]
[White "Rahman, Syed Mahfuzur"]
[Black "Reefat, Bin-Sattar"]
[Result "0-1"]
[ECO "D45"]
[WhiteElo "2130"]
[BlackElo "2367"]
[Annotator "TA"]
[PlyCount "78"]
[EventDate "2022.11.30"]
[EventType "team-tourn"]
[EventCountry "BAN"]
[SourceTitle "playchess.com"]
[Source "ChessBase"]
[SourceQuality "1"]
[TimeControl "40/5400+30:1800+30"]

{[%evp 13,78,36,41,37,33,36,36,29,35,18,31,0,0,0,0,0,5,-2,55,7,12,19,11,15,16,16,7,21,32,9,5,8,4,8,1,5,27,18,23,0,38,0,0,-72,-91,-179,-112,-114,-68,-373,-342,-601,-594,-561,-585,-625,-535,-491,-458,-458,-458,-458,-458,-458,-450,-564,-564]} 1. d4 {[%emt 0:00:07]} d5 {[%emt 0:00:45]} 2. c4 {[%emt 0:00:15]} c6 {[%emt 0:00:04]} 3. Nc3 {[%emt 0:00:25]} Nf6 {[%emt 0:00:05]} 4. e3 {[%emt 0:02:13]} a6 {[%emt 0:02:10]} 5. Nf3 {[%emt 0:01:40]} e6 {[%emt 0:14:35]} 6. Qc2 {[%emt 0:01:52]} Nbd7 {[%emt 0:17:29]} 7. b3 {[%emt 0:06:52]} Bd6 {[%emt 0:04:41]} 8. Bb2 {[%emt 0:06:47] D45: Semi-Slav: 5 e3.} Qe7 {[%emt 0:09:26]} 9. Rd1 {[%emt 0:05:31]} b5 {[%emt 0:16:11]} 10. Be2 {[%emt 0:05:11] White is slightly better.} O-O {[%emt 0:03:33]} 11. O-O {[%emt 0:01:53]} Bb7 {[%emt 0:27:01]} 12. e4 {[%emt 0:22:20]} (12. c5 $5 {[%cal Rc5d6]} Bc7 13. b4 $11) 12... dxe4 {[%emt 0:00:00]} 13. Nxe4 {[%emt 0:00:08]} Nxe4 {[%emt 0:00:00]} 14. Qxe4 {[%emt 0:00:04]} bxc4 {[%emt 0:00:00]} 15. bxc4 {[%emt 0:00:36]} Nf6 {[%emt 0:00:00] Against c5} (15... c5 $1 $11 16. Qe3 (16. Qxb7 Rab8 $15) 16... Rab8) 16. Qh4 {[%emt 0:01:28]} (16. Qc2 $14) 16... c5 $11 {[%emt 0:00:20] [#]} 17. d5 $146 {[%emt 0:23:45]} ({Predecessor:} 17. Rfe1 cxd4 18. Nxd4 Ne4 19. Qxe7 Bxe7 20. Bf3 Rab8 21. Nb3 {½-½ (21) Jurek,J (2291)-Gungl,T (2062) Marianske Lazne 2016}) 17... exd5 {[%emt 0:01:54]} 18. Bxf6 {[%emt 0:00:20]} Qxf6 {[%emt 0:00:03]} 19. Qxf6 {[%emt 0:00:11]} gxf6 {[%emt 0:00:02]} 20. cxd5 {[%emt 0:00:09]} Rfe8 {[%emt 0:01:27]} 21. Rfe1 {[%emt 0:00:14]} Re4 {[%emt 0:00:20]} 22. Nd2 {[%emt 0:00:46]} Rd4 {[%emt 0:00:05]} 23. Nc4 {[%emt 0:01:11]} Rd8 {[%emt 0:01:01]} 24. Ne3 {[%emt 0:01:23]} Bf4 {[%emt 0:00:34]} (24... Bf8 {simplifies} 25. g3 Bxd5 26. Rxd4 cxd4 27. Nxd5 Rxd5 28. Bc4 Rd6) 25. Nf5 {[%emt 0:00:51]} Ra4 {[%emt 0:00:07]} (25... R4xd5 $2 26. Ne7+ Kf8 27. Nxd5 Rxd5 28. Bc4 Rxd1 29. Rxd1 $18) 26. Bf3 {[%emt 0:11:43]} Kf8 {[%emt 0:00:14][%cal Of4e5]} 27. Re2 {[%emt 0:01:22]} (27. Re4 $5 {[%cal Re4a4]} Rb4 28. Rxb4 cxb4 29. Rd4 $14) 27... Bc8 {[%emt 0:00:52]} 28. Ne7 {[%emt 0:01:34]} (28. Re4 $11 {keeps the balance.} Rxe4 29. Bxe4) 28... Bd7 $17 {[%emt 0:00:42]} 29. Rde1 {[%emt 0:02:49]} (29. g3 $17 {was called for.} Be5 30. d6) 29... Re8 {[%emt 0:00:30]} ({Black should play} 29... Bb5 $19 30. Nc6 Bxe2 31. Nxd8 Bb5) 30. g3 {[%emt 0:00:34]} Bb5 {[%emt 0:00:34]} (30... Bd6 $17 31. Nc6 {[#]} Rxa2 $1 32. Rxe8+ Bxe8) 31. Re4 {[%emt 0:01:01][%mdl 8192] [#] Loses the game.} ({Only move:} 31. d6 $1 $15 Bxd6 32. Ng6+ fxg6 33. Rxe8+ Bxe8 34. Rxe8+ Kxe8 35. Bc6+ Ke7 36. Bxa4) 31... Bd2 $19 {[%emt 0:00:37] A strong pair of Bishops.} ({Resist} 31... Rxa2 32. gxf4 Rd2 33. Nf5 $18) 32. Rxa4 $2 {[%emt 0:00:42]} (32. d6 Bxe1 33. Rxe1) 32... Bxe1 {[%emt 0:00:10] Black is clearly winning.} 33. Rh4 {[%emt 0:01:03]} Rxe7 {[%emt 0:00:18]} 34. Rxh7 {[%emt 0:00:00]} Kg8 {[%emt 0:00:45] Prevents h3.} 35. Rh4 {[%emt 0:00:25]} c4 {[%emt 0:00:13] Hoping for ...c3.} 36. a4 {[%emt 0:00:32]} Bxa4 {[%emt 0:00:13] Strongly threatening ...Bb5.} 37. Rxc4 {[%emt 0:00:03]} Bb5 {[%emt 0:00:04]} 38. d6 {[%emt 0:00:58]} Re8 {[%emt 0:00:44]} 39. Rc7 {[%emt 0:00:31]} Ba5 {[%emt 0:00:19] Weighted Error Value: White=0.37/Black=0.14 (very precise)} 0-1

[Event "Bangabandhu Premier Div League 2022"]
[Site "Dhaka"]
[Date "2022.12.03"]
[Round "4.4"]
[White "Kushagra Mohan"]
[Black "Subrota, Biswas"]
[Result "*"]
[ECO "D17"]
[WhiteElo "2390"]
[BlackElo "2288"]
[Annotator "TA"]
[PlyCount "55"]
[EventDate "2022.12.01"]
[EventCountry "BAN"]
[SourceTitle "playchess.com"]
[Source "ChessBase"]
[SourceQuality "1"]
[TimeControl "40/5400+30:1800+30"]

{[%evp 22,55,9,9,30,25,41,31,41,0,0,0,31,19,20,22,29,26,27,22,14,25,43,37,47,50,47,47,47,43,46,37,48,24,24,25]} 1. Nf3 {[%emt 0:00:02]} d5 {[%emt 0:02:40]} 2. c4 {[%emt 0:00:00]} c6 {[%emt 1:28:50]} 3. d4 {[%emt 0:00:00]} Nf6 {[%emt 0:00:00]} 4. Nc3 {[%emt 0:00:00]} dxc4 {[%emt 0:00:00]} 5. a4 {[%emt 0:00:00]} Bf5 {[%emt 0:00:00]} 6. Ne5 {[%emt 0:00:00]} Nbd7 {[%emt 0:00:00]} 7. Nxc4 {[%emt 0:00:30]} Qc7 {[%emt 0:01:00]} 8. g3 {[%emt 0:00:00]} e5 {[%emt 0:00:00]} 9. dxe5 {[%emt 0:00:00]} Nxe5 {[%emt 0:00:00]} 10. Bf4 {[%emt 0:00:00]} Nfd7 {[%emt 0:00:00]} 11. Bg2 {[%emt 0:00:00]} f6 {[%emt 0:00:00]} 12. O-O {[%emt 0:00:30]} Be6 {[%emt 0:00:00] D17: Slav Defence: 5 a4 Bf5: Lines with 6 Nh4 and 6 Ne5.} 13. Nxe5 {[%emt 0:00:00]} Nxe5 {[%emt 0:00:00] The main line 13...Nxe5 scores better than 13...fxe5.} 14. a5 {[%emt 0:00:00] Threatens to win with Bxe5.} Rd8 {[%emt 0:00:00] White is slightly better.} 15. Qc2 {[%emt 0:00:00]} a6 $1 {[%emt 0:01:30]} 16. Ne4 {[%emt 0:00:00]} Be7 {[%emt 0:00:00]} 17. Nc5 {[%emt 0:00:00]} Bxc5 {[%emt 0:00:00]} 18. Qxc5 {[%emt 0:00:30] [#]} Qd6 $146 {[%emt 0:00:00]} ({Predecessor:} 18... Qe7 19. Qc3 Bd5 20. e4 Bf7 21. Rfd1 O-O 22. b4 Qe6 23. h3 Qb3 24. Qxb3 Bxb3 25. Rdb1 {½-½ (25) Almeida Quintana,O (2488)-Pozo Vera,S (2448) Havana 2007}) 19. Qxd6 {[%emt 0:00:00]} Rxd6 {[%emt 0:00:00]} 20. Rfd1 {[%emt 0:00:00]} Rxd1+ {[%emt 0:00:00]} 21. Rxd1 {[%emt 0:00:30]} Ke7 {[%emt 0:00:00]} 22. Bd2 {[%emt 0:00:00]} Rd8 {[%emt 0:02:00] [#] Strongly threatening ...Ke8.} 23. Bb4+ {[%emt 0:00:00]} Ke8 {[%emt 0:00:00]} 24. Rxd8+ {[%emt 0:00:00]} Kxd8 {[%emt 0:00:00]} 25. Bf8 {[%emt 0:00:30]} g6 {[%emt 0:01:00]} 26. Bc5 {[%emt 0:00:00]} f5 {[%emt 0:00:00]} 27. h4 {[%emt 0:01:30]} Kc7 {[%emt 0:00:00]} 28. b4 {[%emt 0:00:00] Weighted Error Value: White=0.07 (flawless) /Black=0.08 (flawless)} *

[Event "Bangabandhu Premier Div League 2022"]
[Site "Dhaka"]
[Date "2022.12.03"]
[Round "4.4"]
[White "Chowdhury, Sohel"]
[Black "Mohammad Nubairshah Shaikh"]
[Result "0-1"]
[ECO "B23"]
[WhiteElo "2004"]
[BlackElo "2439"]
[Annotator "TA"]
[PlyCount "52"]
[EventDate "2022.11.30"]
[EventType "team-tourn"]
[EventCountry "BAN"]
[SourceTitle "playchess.com"]
[Source "ChessBase"]
[SourceQuality "1"]
[TimeControl "40/5400+30:1800+30"]

{[%evp 13,52,-33,-12,-52,-43,-97,-92,-180,-188,-189,-182,-220,-204,-316,-314,-312,-303,-359,-333,-370,-376,-375,-332,-506,-486,-476,-483,-497,-485,-492,-410,-633,-620,-647,-648,-738,-728,-820,-805,-704,-633]} 1. e4 {[%emt 1:31:00]} c5 {[%emt 0:09:12]} 2. Nc3 {[%emt 0:00:00]} e6 {[%emt 0:00:15]} 3. g3 {[%emt 0:00:00]} d5 {[%emt 0:00:04]} 4. exd5 {[%emt 0:00:00]} exd5 {[%emt 0:00:04]} 5. Bg2 {[%emt 0:00:00]} Nf6 {[%emt 0:00:43]} 6. d4 {[%emt 0:00:00]} cxd4 {[%emt 0:02:25]} 7. Qxd4 {[%emt 0:00:00]} Nc6 $1 {[%emt 0:00:05]} 8. Qa4 {[%emt 0:00:00] B23: Closed Sicilian: Lines without g3.} Bd7 {[%emt 0:25:28] [#] aiming for ...d4.} 9. Nge2 $146 {[%emt 0:00:00] [#] Prevents d4.} (9. Bxd5 $2 {loses.} Bb4 10. Qb5 Bxc3+ 11. bxc3 Ne7 $19) (9. Nxd5 $2 Nxd5 10. Bxd5 Nb4 $19) (9. Nf3 $15) ({Predecessor:} 9. Qf4 Nb4 10. Kd1 d4 11. Ne4 Nxe4 12. Bxe4 Bd6 13. Qg5 O-O 14. Qxd8 {1-0 (14) Muller,J (2467)-Kroenauer,K (2396) ICCF corr 2000}) 9... d4 $1 $17 {[%emt 0:00:39]} 10. Nxd4 {[%emt 0:00:00] [#]} (10. Ne4 $17 {was necessary.}) 10... Na5 $1 $19 {[%emt 0:00:27]} 11. Ndb5 {[%emt 0:00:00] And now Bf4 would win.} a6 {[%emt 0:00:10]} 12. O-O {[%emt 0:00:00] Re1+ is the strong threat.} Be7 {[%emt 0:15:07]} 13. b4 {[%emt 0:00:00]} (13. Bg5 {was worth a try.} axb5 14. Qh4) 13... axb5 {[%emt 0:00:40]} 14. Nxb5 {[%emt 0:00:00] [#]} O-O $1 {[%emt 0:00:05] Strongly threatening ...Nc4.} 15. bxa5 {[%emt 0:00:00]} (15. Rd1 Bxb5) 15... Rxa5 {[%emt 0:00:02][%cal Ba8a5,Ba5a4,Ba4c4][%mdl 32]} 16. Qf4 {[%emt 0:00:00]} Bxb5 {[%emt 0:04:22]} 17. Re1 {[%emt 0:00:00]} Bc6 {[%emt 0:04:16]} 18. Bd2 {[%emt 0:00:00]} (18. Bxc6 $142 bxc6 19. a4) 18... Ra4 {[%emt 0:35:26]} 19. c4 {[%emt 0:00:00]} Bxg2 {[%emt 0:00:00]} 20. Kxg2 {[%emt 0:00:00]} b5 {[%emt 0:00:00]} 21. Rad1 {[%emt 0:00:00]} Rxc4 {[%emt 0:00:00]} (21... Rxa2 $2 {perishes.} 22. Kg1 Bc5 23. Bb4 $19) 22. Qe5 {[%emt 0:00:00]} (22. Qf3 $142 Qc7 23. Bf4) 22... Qa8+ {[%emt 0:00:00] Black is clearly winning.} 23. Kg1 {[%emt 0:00:00]} Bc5 {[%emt 0:00:00]} 24. Be3 {[%emt 0:00:00]} Ng4 {[%emt 0:00:00]} 25. Qb2 {[%emt 0:00:00]} Nxe3 {[%emt 0:00:00]} 26. fxe3 {[%emt 0:00:00]} Qe4 {[%emt 0:00:00] White did not feel at home in the position after the opening.   Weighted Error Value: White=0.71/Black=0.09 (flawless)} 0-1

[Event "Bangabandhu Premier Div League 2022"]
[Site "Dhaka"]
[Date "2022.12.03"]
[Round "4.5"]
[White "Rahman, Ziaur"]
[Black "Haque, Rezaul"]
[Result "1-0"]
[ECO "B07"]
[WhiteElo "2464"]
[BlackElo "1949"]
[Annotator "TA"]
[PlyCount "59"]
[EventDate "2022.12.01"]
[EventCountry "BAN"]
[SourceTitle "playchess.com"]
[Source "ChessBase"]
[SourceQuality "1"]
[TimeControl "40/5400+30:1800+30"]

{[%evp 9,59,57,78,70,93,88,78,87,121,43,178,182,197,118,208,168,167,171,162,151,165,156,140,144,407,393,420,432,580,565,949,905,935,924,891,887,835,536,676,641,654,732,1058,985,29989,29973,1710,1479,1445,1342,1387,1365]} 1. d4 {[%emt 0:00:04]} d6 {[%emt 0:00:17]} 2. Nf3 {[%emt 0:00:36]} Bg4 {[%emt 0:00:45]} 3. e4 {[%emt 0:00:58]} Nf6 {[%emt 0:00:53]} 4. Nc3 {[%emt 0:00:18]} c6 {[%emt 0:01:01]} 5. h3 {[%emt 0:01:07]} Bxf3 {[%emt 0:01:23]} 6. Qxf3 {[%emt 0:00:19] B07: Pirc Defence: Miscellaneous Systems.} e6 {[%emt 1:29:11]} 7. d5 {[%emt 0:09:42]} cxd5 {[%emt 0:00:30]} 8. exd5 {[%emt 0:01:03] White is better.} e5 {[%emt 0:00:00] [#]} 9. a4 $146 {[%emt 1:20:53]} (9. Bb5+ Nbd7 $14) (9. Bd2 $16) ({Predecessor:} 9. g4 Be7 10. g5 Nfd7 11. h4 Na6 12. Bd2 Rc8 13. Bh3 Rc5 14. h5 Rf8 15. Be3 {0-1 (39) Yankelevich,L (2413)-Krasenkow,M (2629) Germany 2017}) 9... a5 {[%emt 0:01:00]} (9... Be7 $14) 10. Bb5+ $18 {[%emt 0:00:00]} Nfd7 {[%emt 0:00:00] [#]} 11. Ne4 {[%emt 0:01:00]} ({White should try} 11. Qg3 $1 $18) 11... h6 {[%emt 0:00:00]} (11... Be7 $16 {might work better.}) 12. h4 {[%emt 0:00:00][%cal Bh3h4,Bh4h5][%mdl 32] And now Be3 would win.} Na6 {[%emt 0:00:00]} 13. Be3 {[%emt 0:01:00]} Nc7 {[%emt 0:00:00]} 14. Bb6 {[%emt 0:00:30] aiming for Rh3. A strong pair of Bishops.} Qc8 {[%emt 0:00:00] [#] Strongly threatening ...Nxb5.} 15. Bxc7 {[%emt 0:00:00]} Qxc7 {[%emt 0:03:00]} 16. Ra3 $36 {[%emt 0:00:00][%mdl 2048] White has strong initiative. White has more active pieces.} Qd8 $2 {[%emt 0:00:00][%mdl 8192]} (16... O-O-O $16 17. Qxf7 (17. Rc3 Nc5 $16) 17... Nc5) 17. h5 {[%emt 0:01:30]} Rc8 {[%emt 0:01:00]} 18. Qf5 {[%emt 0:00:30]} Rc7 {[%emt 0:00:30]} 19. Rhh3 {[%emt 0:00:00]} ({Less strong is} 19. Rf3 Qe7 20. Rhh3 Kd8 $18) 19... Qe7 {[%emt 0:00:00]} 20. Rac3 {[%emt 0:01:00]} Kd8 {[%emt 0:00:00]} 21. Rxc7 {[%emt 0:00:00]} Kxc7 {[%emt 0:00:00]} 22. Rc3+ {[%emt 0:00:00]} Kd8 {[%emt 0:02:00]} 23. Rf3 {[%emt 0:01:30]} f6 {[%emt 0:00:00]} 24. Rc3 {[%emt 0:00:30]} Nb6 {[%emt 0:01:00]} 25. Qh3 {[%emt 0:00:00] Hoping for Qe3.} Nd7 {[%emt 0:00:00]} 26. Qe3 {[%emt 0:00:00] White wants to mate with Qa7.} Qf7 {[%emt 0:00:00]} 27. Bxd7 {[%emt 0:01:30]} Kxd7 {[%emt 0:00:00]} 28. Qh3+ {[%emt 0:00:30] White is clearly winning.} f5 {[%emt 0:00:00]} 29. Ng3 {[%emt 0:00:00]} Qxd5 {[%emt 0:00:00]} 30. Qxf5+ {[%emt 0:00:00] Weighted Error Value: White=0.40/Black=0.78} 1-0